fUSD/lending_fUSD_20250906
["ID","MTS","AMOUNT","RATE_DAILY","PERIOD"]
[383832419,1757137751265,-500.0,0.00022,2]
[383832420,1757137751286,-367.46583261,0.0002215,2]
[383832421,1757137751306,-463.04060933,0.0002215,2]
[383832422,1757137751327,-491.30814062,0.0002215,2]
[383832423,1757137751347,-503.94611895,0.0002215,2]
[383832424,1757137751368,-500.0,0.0002215,2]
[383832425,1757137751388,-500.0,0.0002215,2]
[383832426,1757137751411,-500.56052302,0.0002215,2]
[383832427,1757137751437,-500.0,0.0002215,2]
[383832428,1757137751458,-502.50017223,0.0002215,2]
[383832429,1757137751479,-487.40977298,0.0002215,2]
[383832430,1757137751500,-500.62735097,0.0002215,2]
[383832431,1757137751537,-500.0,0.0002215,2]
[383832432,1757137751559,-500.0,0.0002215,2]
[383832433,1757137751583,-159.90844724,0.0002215,2]
[383832434,1757137751605,-500.0,0.0002215,2]
[383832435,1757137751627,-101.97784059,0.0002215,2]
[383832436,1757137754073,-399.02818585,0.0002215,2]
[383832437,1757137754095,-1000.0,0.00022548,2]
[383832438,1757137754117,-451.05990975,0.00022685,2]
[383832439,1757137755214,-462.86009025,0.00022685,2]
[383832440,1757137755237,-668.78064932,0.00022698,2]
[383832441,1757137755258,-1000.0,0.00022698,2]
[383832442,1757137755279,-502.63330034,0.00022698,2]
[383832443,1757137755300,-500.95748089,0.00022698,2]
[383832444,1757137755321,-500.0,0.00022698,2]
[383832445,1757137755343,-500.0,0.00022698,2]
[383832446,1757137755368,-166.29,0.00022914,2]
[383832447,1757137755389,-195.0,0.00022957,2]
[383832448,1757137755410,-300.0,0.00022957,2]
[383832449,1757137755436,-250.0,0.00022957,2]
[383832450,1757137755459,-300.0,0.00022957,2]
[383832451,1757137755481,-1500.0,0.00023096,2]
[383832452,1757137755502,-1500.58999569,0.00023246,2]
[383832453,1757137755529,-913.92,0.00023592,2]
[383832454,1757137755555,-869.96321782,0.00023644,2]
[383832455,1757137755576,-420.0,0.00023861,2]
[383832456,1757137755597,-1680.0,0.00023973,2]
[383832457,1757137755617,-374.45732685,0.00024443,2]
[383832458,1757137755640,-913.92,0.000245,2]
[383832459,1757137755662,-221.4,0.00025033,2]
[383832460,1757137755685,-913.92,0.00025407,2]
[383832461,1757137755707,-152.99,0.00025665,2]
[383832462,1757137755729,-11613.03,0.00025665,2]
[383832463,1757137755750,-924.87,0.00025681,2]
[383832464,1757137755773,-5000.0,0.00025682,2]
[383832465,1757137755794,-587.0,0.0002593,2]
[383832466,1757137755814,-1852.42,0.00026068,2]
[383832467,1757137755835,-2351.0,0.00026174,2]
[383832468,1757137755855,-500.0,0.00026273,2]
[383832469,1757137755875,-265.75416693,0.00026275,2]
[383832470,1757137755907,-500.0,0.00026275,2]
[383832471,1757137755935,-500.0,0.00026275,2]
[383832472,1757137755957,-500.0,0.00026275,2]
[383832473,1757137755980,-500.0,0.00026275,2]
[383832474,1757137756014,-500.0,0.00026275,2]
[383832475,1757137756038,-442.02692748,0.00026275,2]
[383832476,1757137756064,-500.0,0.00026275,2]
[383832477,1757137756088,-500.0,0.00026275,2]
[383832478,1757137756117,-500.0,0.00026275,2]
[383832479,1757137756151,-500.0,0.00026275,2]
[383832480,1757137756174,-500.0,0.00026275,2]
[383832481,1757137756198,-500.0,0.00026275,2]
[383832482,1757137756222,-500.0,0.00026275,2]
[383832483,1757137756246,-500.0,0.00026275,2]
[383832484,1757137756268,-500.0,0.00026275,2]
[383832485,1757137756291,-500.0,0.00026275,2]
[383832486,1757137756316,-500.0,0.00026275,2]
[383832487,1757137756340,-500.0,0.00026275,2]
[383832488,1757137756364,-500.0,0.00026275,2]
[383832489,1757137756392,-473.36860443,0.00026275,2]
[383832490,1757137765156,-158.98052696,0.00026275,2]
[383832491,1757137765180,-500.0,0.00026275,2]
[383832492,1757137765202,-500.0,0.00026275,2]
[383832493,1757137765224,-500.0,0.00026275,2]
[383832494,1757137765246,-500.0,0.00026275,2]
[383832495,1757137765267,-500.0,0.00026275,2]
[383832496,1757137765289,-500.0,0.00026275,2]
[383832497,1757137765311,-500.0,0.00026275,2]
[383832498,1757137765333,-500.0,0.00026275,2]
[383832499,1757137765355,-300.0,0.00026275,2]
[383832500,1757137765378,-258.21401309,0.00026275,2]
[383832501,1757137765398,-11844.48891995,0.00026276,2]
[383832502,1757137766149,-1927.71632881,0.0002583,2]
[383832503,1757137766172,-1432.04108005,0.00026276,2]
[383832504,1757137766197,-913.92,0.00026315,2]
[383832505,1757137766217,-3716.56090314,0.00026403,2]
[383832506,1757137766308,-2438.724806,0.00026403,2]
[383832507,1757137804710,195.0,0.00029043,120]
[383832511,1757137831739,-500.0,0.00026273,2]
[383832512,1757137831749,-500.0,0.00026273,2]
[383832513,1757137831759,-2652.02429086,0.00026403,2]
[383832514,1757137831769,-250.0,0.00026564,2]
[383832515,1757137831779,-300.0,0.00026726,2]
[383832516,1757137831788,-1200.0,0.00026726,2]
[383832517,1757137831797,-500.0,0.00026727,2]
[383832518,1757137831807,-500.0,0.00026727,2]
[383832519,1757137831816,-500.0,0.00026727,2]
[383832520,1757137831825,-508.03269566,0.00026727,2]
[383832521,1757137831834,-500.0,0.00026727,2]
[383832522,1757137831843,-500.0,0.00026727,2]
[383832523,1757137831852,-500.0,0.00026727,2]
[383832524,1757137831862,-500.0,0.00026727,2]
[383832525,1757137831871,-500.0,0.00026727,2]
[383832526,1757137831880,-250.0,0.00026763,2]
[383832527,1757137831890,-664.79091363,0.00026821,2]
[383832528,1757137831899,-1000.0,0.00026821,2]
[383832529,1757137831908,-1000.0,0.00026821,2]
[383832530,1757137831917,-545.0,0.00027137,2]
[383832531,1757137831927,-6174.61,0.00027144,2]
[383832532,1757137831937,-374.45732685,0.00027207,2]
[383832533,1757137831947,-913.92,0.00027222,2]
[383832534,1757137831956,-852.6683059,0.00027275,2]
[383832535,1757137831966,-1000.0,0.00027275,2]
[383832536,1757137831976,-551.96958932,0.00027275,2]
[383832537,1757137831985,-1000.0,0.00027275,2]
[383832538,1757137831995,-1001.45701623,0.00027275,2]
[383832539,1757137832005,-1000.0,0.00027275,2]
[383832540,1757137832014,-1002.10778551,0.00027275,2]
[383832543,1757137832028,-1000.0,0.00027275,2]
[383832545,1757137832037,-15978.79442662,0.00027307,2]
[383832547,1757137832047,-17063.53,0.00027309,2]
[383832549,1757137832056,-1512.06975991,0.00027368,2]
[383832550,1757137832066,-318.62183183,0.00027368,2]
[383832551,1757137832207,-1181.37816817,0.00027368,2]
[383832552,1757137832217,-250.0,0.00027397,2]
[383832553,1757137832227,-1608.27,0.00027538,2]
[383832554,1757137832238,-500.0,0.0002754,5]
[383832555,1757137832248,-528.17421264,0.0002754,5]
[383832556,1757137832259,-500.0,0.0002754,5]
[383832557,1757137832268,-501.68924603,0.0002754,5]
[383832558,1757137832277,-500.0,0.0002754,5]
[383832559,1757137832287,-500.0,0.0002754,5]
[383832560,1757137832297,-1374.42334169,0.00027823,5]
[383832561,1757137832309,-125.57665831,0.00027823,5]
[383832562,1757137832319,-1364.79602704,0.00027823,5]
[383832576,1757137837956,-500.0,0.00027367,2]
[383832577,1757137837966,-500.0,0.00027367,2]
[383832578,1757137837976,-493.23491314,0.00027367,2]
[383832579,1757137837986,-666.0,0.00027492,3]
[383832580,1757137837996,-135.20397296,0.00027823,5]
[383832581,1757137838006,-1500.0,0.00027823,5]
[383832582,1757137838015,-503.82922599,0.00027823,5]
[383832583,1757137838025,-202.55734374,0.00027835,2]
[383832584,1757137838035,-202.00565478,0.00027835,2]
[383832585,1757137838045,-203.81733743,0.00027835,2]
[383832586,1757137838055,-663.6910289,0.00027835,2]
[383832587,1757137838066,-600.0,0.00027835,2]
[383832588,1757137838075,-600.0,0.00027835,2]
[383832589,1757137838085,-600.0,0.00027835,2]
[383832590,1757137838095,-544.24277941,0.00027835,2]
[383832591,1757137838107,-151.0,0.00027835,2]
[383832592,1757137838117,-151.0,0.00027835,2]
[383832594,1757137838136,-151.0,0.00027835,2]
[383832596,1757137838146,-151.0,0.00027835,2]
[383832597,1757137838156,-151.0,0.00027835,2]
[383832598,1757137838166,-500.0,0.00027835,2]
[383832599,1757137838175,-151.0,0.00027835,2]
[383832600,1757137838186,-151.0,0.00027835,2]
[383832601,1757137838196,-151.0,0.00027835,2]
[383832602,1757137838206,-151.0,0.00027835,2]
[383832603,1757137838216,-151.0,0.00027835,2]
[383832604,1757137838225,-500.0,0.00027835,2]
[383832605,1757137838235,-151.0,0.00027835,2]
[383832606,1757137838246,-500.0,0.00027835,2]
[383832607,1757137838255,-151.0,0.00027835,2]
[383832609,1757137838265,-243.8842502,0.00027835,2]
[383832610,1757137838275,-500.0,0.00027835,2]
[383832612,1757137838285,-151.0,0.00027835,2]
[383832615,1757137838295,-500.0,0.00027835,2]
[383832616,1757137838306,-151.0,0.00027835,2]
[383832618,1757137838316,-500.0,0.00027835,2]
[383832620,1757137838326,-151.0,0.00027835,2]
[383832623,1757137838336,-151.0,0.00027835,2]
[383832624,1757137838346,-500.0,0.00027835,2]
[383832626,1757137838356,-151.0,0.00027835,2]
[383832628,1757137838366,-500.0,0.00027835,2]
[383832630,1757137838377,-151.0,0.00027835,2]
[383832632,1757137838387,-151.0,0.00027835,2]
[383832635,1757137838399,-500.0,0.00027835,2]
[383832637,1757137838409,-151.0,0.00027835,2]
[383832639,1757137838419,-151.0,0.00027835,2]
[383832641,1757137838429,-500.0,0.00027835,2]
[383832643,1757137838439,-151.0,0.00027835,2]
[383832645,1757137838449,-500.0,0.00027835,2]
[383832647,1757137838459,-151.0,0.00027835,2]
[383832649,1757137838468,-151.0,0.00027835,2]
[383832651,1757137838479,-500.0,0.00027835,2]
[383832653,1757137838488,-151.0,0.00027835,2]
[383832655,1757137838498,-151.0,0.00027835,2]
[383832657,1757137838508,-500.0,0.00027835,2]
[383832659,1757137838518,-151.0,0.00027835,2]
[383832661,1757137838529,-151.0,0.00027835,2]
[383832663,1757137838542,-151.0,0.00027835,2]
[383832665,1757137838552,-151.0,0.00027835,2]
[383832667,1757137838562,-151.0,0.00027835,2]
[383832669,1757137838572,-151.0,0.00027835,2]
[383832681,1757137838679,-200.0,0.00027835,2]
[383832683,1757137838690,-500.0,0.0002789,2]
[383832684,1757137838699,-1007.55768859,0.00027916,5]
[383832686,1757137838709,-500.0,0.00027945,2]
[383832687,1757137838720,-252.62,0.0002795,2]
[383832688,1757137838729,-500.0,0.00028,2]
[383832689,1757137838739,-500.0,0.00028055,2]
[383832690,1757137838748,-1000.0,0.00028088,5]
[383832691,1757137838758,-398.79790134,0.00028088,5]
[383832692,1757137838767,-1000.0,0.00028088,5]
[383832693,1757137838777,-1000.0,0.00028088,5]
[383832694,1757137838786,-501.0508669,0.000281,5]
[383832695,1757137838796,-500.0,0.000281,5]
[383832696,1757137838805,-500.0,0.0002811,2]
[383832697,1757137838815,-913.92,0.00028129,2]
[383832698,1757137838824,-4696.52,0.00028131,2]
[383832699,1757137838834,-500.0,0.00028165,2]
[383832700,1757137838843,-2607.95,0.00028194,2]
[383832701,1757137838852,-150.0,0.00028245,5]
[383832702,1757137838865,-150.0,0.00028245,5]
[383832703,1757137838875,-500.0,0.00028245,5]
[383832704,1757137838884,-150.0,0.00028245,2]
[383832705,1757137838894,-500.0,0.00028245,5]
[383832706,1757137838903,-500.0,0.00028245,5]
[383832707,1757137838914,-500.0,0.00028245,5]
[383832708,1757137838924,-150.0,0.00028245,5]
[383832709,1757137838935,-150.0,0.00028245,5]
[383832710,1757137838946,-500.0,0.00028245,5]
[383832711,1757137838956,-151.2694057,0.00028245,5]
[383832712,1757137838966,-500.0,0.00028245,5]
[383832713,1757137838976,-500.0,0.00028245,5]
[383832714,1757137838986,-150.0,0.00028245,5]
[383832715,1757137838996,-150.0,0.00028245,2]
[383832716,1757137839005,-246.6404804,0.00028245,5]
[383832717,1757137839015,-150.0,0.00028245,5]
[383832718,1757137839025,-458.0,0.00028245,5]
[383832719,1757137839035,-500.0,0.00028245,5]
[383832720,1757137839046,-2000.0,0.00028371,5]
[383832721,1757137839056,-2005.92996625,0.00028371,5]
[383832722,1757137839066,-2000.0,0.00028371,5]
[383832723,1757137839076,-175.04509423,0.00028447,30]
[383832724,1757137839086,-1885.95,0.00028479,2]
[383832725,1757137839097,-150.0,0.00028519,5]
[383832726,1757137839109,-500.0,0.00028519,5]
[383832727,1757137839119,-500.0,0.00028519,5]
[383832728,1757137839130,-500.0,0.00028519,5]
[383832729,1757137839140,-500.0,0.00028519,5]
[383832730,1757137839150,-151.68664424,0.00028519,5]
[383832731,1757137839160,-150.0,0.00028519,5]
[383832732,1757137839170,-500.0,0.00028519,5]
[383832733,1757137839181,-500.0,0.00028519,5]
[383832734,1757137839191,-500.0,0.00028519,5]
[383832735,1757137839202,-151.11512202,0.00028519,5]
[383832736,1757137839212,-150.0,0.00028519,2]
[383832737,1757137839222,-150.0,0.00028519,5]
[383832738,1757137839232,-458.0,0.00028519,5]
[383832739,1757137839242,-500.0,0.00028519,5]
[383832740,1757137839252,-872.47,0.00028524,2]
[383832741,1757137839263,-500.0,0.00028571,5]
[383832742,1757137839273,-1500.0,0.00028636,5]
[383832743,1757137839283,-184.86009203,0.00028636,5]
[383832744,1757137839293,-1500.0,0.00028636,5]
[383832745,1757137839303,-1000.78484133,0.00028648,5]
[383832746,1757137839313,-991.92220065,0.00028721,30]
[383832747,1757137839323,-150.0,0.00028793,5]
[383832748,1757137839333,-500.0,0.00028793,5]
[383832749,1757137839343,-500.0,0.00028793,5]
[383832750,1757137839353,-500.0,0.00028793,5]
[383832751,1757137839363,-558.25366652,0.00028793,5]
[383832752,1757137839373,-150.0,0.00028793,5]
[383832753,1757137839383,-500.0,0.00028793,5]
[383832754,1757137839393,-500.0,0.00028793,5]
[383832755,1757137839403,-500.0,0.00028793,5]
[383832756,1757137839413,-150.0,0.00028793,2]
[383832757,1757137839423,-150.0,0.00028793,5]
[383832758,1757137839437,-458.0,0.00028793,5]
[383832759,1757137839446,-500.0,0.00028793,5]
[383832760,1757137839455,-346.63314863,0.00028898,2]
[383832761,1757137839463,-1608.27,0.00028915,2]
[383832762,1757137839472,-1737.49233191,0.00028918,5]
[383832763,1757137839480,-1000.0,0.00028918,5]
[383832764,1757137839491,-215.0,0.00028976,2]
[383832765,1757137839500,-160.0,0.00029009,7]
[383832766,1757137839509,-1680.0,0.0002903,2]
[383832767,1757137839518,-913.92,0.00029037,2]
[383832768,1757137839527,-200.0,0.00029043,2]
[383832769,1757137839536,-250.0,0.00029043,2]
[383832770,1757137839547,-509.35267577,0.00029067,5]
[383832771,1757137839556,-500.0,0.00029067,5]
[383832772,1757137839565,-500.0,0.00029067,5]
[383832773,1757137839573,-150.0,0.00029067,5]
[383832774,1757137839582,-500.0,0.00029067,5]
[383832775,1757137839590,-455.19971377,0.00029067,5]
[383832776,1757137839598,-500.0,0.00029067,5]
[383832777,1757137839606,-150.0,0.00029067,2]
[383832778,1757137839614,-205.04784047,0.00029067,5]
[383832779,1757137839623,-458.0,0.00029067,5]
[383832780,1757137839633,-500.0,0.00029067,5]
[383832781,1757137839643,-841.67455726,0.00029119,5]
[383832782,1757137839653,-519.05042126,0.00029184,5]
[383832783,1757137839662,-1305.66323621,0.00029184,5]
[383832784,1757137839670,-2858.57,0.00029205,2]
[383832785,1757137839679,-283.18,0.00029232,30]
[383832786,1757137839689,-150.0,0.00029308,2]
[383832787,1757137839698,-500.0,0.00029341,5]
[383832788,1757137839707,-282.63,0.00029341,5]
[383832789,1757137839716,-202.20453821,0.00029341,5]
[383832790,1757137839725,-500.0,0.00029341,5]
[383832791,1757137839733,-340.02534851,0.00029341,5]
[383832792,1757137839742,-150.0,0.00029341,2]
[383832793,1757137839751,-458.0,0.00029341,5]
[383832794,1757137839759,-500.0,0.00029341,5]
[383832795,1757137839768,-500.0,0.00029552,2]
[383832796,1757137839778,-179.42925274,0.00029602,2]
[383832797,1757137839785,-184.78557424,0.00029602,2]
[383832798,1757137839795,-500.0,0.00029602,2]
[383832799,1757137839805,-500.0,0.00029602,2]
[383832800,1757137839815,-319.16921523,0.00029602,2]
[383832801,1757137839825,-369.54066302,0.00029602,2]
[383832802,1757137839835,-19818.52692331,0.00029603,2]
[383832803,1757137839846,-49770.06,0.00029613,2]
[383832804,1757137839856,-500.0,0.00029615,5]
[383832805,1757137839866,-500.0,0.00029615,5]
[383832806,1757137839876,-250.0,0.00029615,2]
[383832807,1757137839886,-458.0,0.00029615,5]
[383832808,1757137839896,-500.0,0.00029615,5]
[383832809,1757137839905,-2184.22,0.00029753,2]
[383832810,1757137839915,-500.0,0.00029889,5]
[383832811,1757137839924,-514.47763409,0.00029889,5]
[383832812,1757137839934,-458.0,0.00029889,5]
[383832813,1757137839943,-500.0,0.00029889,5]
[383832814,1757137839952,-913.92,0.00029944,2]
[383832815,1757137840049,-151.0,0.0003,14]
[383832816,1757137840060,-222.09,0.00030094,2]
[383832817,1757137840070,-1453.54066605,0.00030137,2]
[383832818,1757137840081,-500.0,0.00030163,5]
[383832819,1757137840092,-458.0,0.00030163,5]
[383832820,1757137840102,-500.0,0.00030163,5]
[383832821,1757137840113,-1365.17,0.00030281,2]
[383832822,1757137840123,-1608.27,0.00030291,2]
[383832823,1757137840134,-500.0,0.00030303,7]
[383832824,1757137840144,-500.0,0.00030437,5]
[383832825,1757137840161,-458.0,0.00030437,5]
[383832826,1757137840171,-500.0,0.00030437,5]
[383832827,1757137840181,-500.0,0.00030446,7]
[383832828,1757137840191,-207.4,0.00030574,2]
[383832829,1757137840201,-700.0,0.00030638,7]
[383832830,1757137840211,-150.0,0.00030684,120]
[383832831,1757137840220,-500.0,0.00030711,5]
[383832832,1757137840231,-458.0,0.00030711,5]
[383832833,1757137840241,-500.0,0.00030711,5]
[383832834,1757137840251,-500.0,0.00030711,7]
[383832835,1757137840260,-1500.0,0.00030718,16]
[383832836,1757137840270,-3653.72,0.00030718,2]
[383832837,1757137840280,-500.0,0.00030746,7]
[383832838,1757137840290,-12105.14442792,0.0003075,2]
[383832839,1757137840299,-512.29630862,0.00030792,5]
[383832840,1757137840309,-501.54231927,0.00030792,5]
[383832841,1757137840318,-500.0,0.00030792,5]
[383832842,1757137840327,-524.88728886,0.00030792,5]
[383832843,1757137840337,-600.02268285,0.00030792,5]
[383832844,1757137840346,-500.0,0.00030792,5]
[383832845,1757137840356,-423.77570437,0.00030792,5]
[383832846,1757137840366,-500.0,0.00030792,5]
[383832847,1757137840376,-276.97603306,0.00030792,5]
[383832848,1757137840385,-500.0,0.00030792,5]
[383832849,1757137840394,-500.0,0.00030792,5]
[383832850,1757137840404,-501.56269606,0.00030792,5]
[383832851,1757137840414,-500.0,0.00030792,5]
[383832852,1757137840423,-150.0,0.00030821,120]
[383832853,1757137840433,-913.92,0.00030852,2]
[383832854,1757137840442,-150.0,0.00030958,120]
[383832855,1757137840451,-500.0,0.00030985,5]
[383832856,1757137840461,-458.0,0.00030985,5]
[383832857,1757137840470,-500.0,0.00030985,5]
[383832858,1757137840480,-600.0,0.00031091,7]
[383832859,1757137840490,-150.0,0.00031095,120]
[383832860,1757137840499,-5000.0,0.00031134,2]
[383832861,1757137840509,-2018.94,0.00031151,2]
[383832862,1757137840519,-175.72126501,0.00031232,120]
[383832863,1757137840528,-500.0,0.00031259,5]
[383832864,1757137840540,-458.0,0.00031259,5]
[383832865,1757137840550,-500.0,0.00031259,5]
[383832866,1757137840560,-502.26601175,0.0003134,5]
[383832867,1757137840570,-502.40644997,0.0003134,5]
[383832868,1757137840580,-823.88876075,0.0003134,5]
[383832869,1757137840591,-503.15121987,0.0003134,5]
[383832870,1757137840601,-1000.0,0.0003134,5]
[383832871,1757137840613,-1000.0,0.0003134,5]
[383832872,1757137840623,-226.95648678,0.00031368,2]
[383832873,1757137840634,-538.64102639,0.0003144,5]
[383832874,1757137840644,-164.02018487,0.0003144,5]
[383832877,1757137840662,-501.38563318,0.0003144,5]
[383832880,1757137840680,-567.82093561,0.0003144,5]
[383832882,1757137840699,-866.909,0.00031519,29]
[383832885,1757137840722,-2351.0,0.00031532,3]
[383832888,1757137840739,-500.0,0.00031533,5]
[383832891,1757137840757,-458.0,0.00031533,5]
[383832894,1757137840776,-552.19560096,0.00031533,5]
[383832897,1757137840797,-168.13,0.00031582,2]
[383832900,1757137840819,-12105.14442791,0.000316,2]
[383832903,1757137840836,-221.4,0.00031665,2]
[383832906,1757137840856,-1608.27,0.00031668,2]
[383832909,1757137840875,-913.92,0.00031759,2]
[383832912,1757137840889,-789.2999957,0.00031765,2]
[383832914,1757137840908,-500.0,0.00031807,5]
[383832917,1757137840922,-458.0,0.00031807,5]
[383832920,1757137840940,-700.0,0.00031844,7]
[383832922,1757137840953,-8795.04064424,0.00031855,3]
[383832925,1757137840969,-200.0,0.00031865,2]
[383832927,1757137840984,-150.0,0.00031865,2]
[383832930,1757137841002,-150.57356187,0.00031865,2]
[383832933,1757137841017,-500.0,0.00031865,2]
[383832935,1757137841033,-500.0,0.00031865,2]
[383832938,1757137841048,-500.0,0.00031865,2]
[383832940,1757137841062,-500.0,0.00031865,2]
[383832943,1757137841078,-500.0,0.00031865,2]
[383832945,1757137841093,-500.0,0.00031865,2]
[383832948,1757137841111,-150.7254357,0.00031865,2]
[383832950,1757137841126,-500.0,0.00031865,2]
[383832953,1757137841141,-500.0,0.00031865,2]
[383832955,1757137841155,-1540.84201633,0.00031888,5]
[383832958,1757137841171,-1500.0,0.00031888,5]
[383832960,1757137841185,-500.0,0.00031986,5]
[383832963,1757137841201,-500.0,0.00031986,5]
[383832966,1757137841217,-500.72316225,0.00031986,5]
[383832968,1757137841233,-500.77782201,0.00031986,5]
[383832971,1757137841249,-500.0,0.00031986,5]
[383832973,1757137841264,-502.14935412,0.00031986,5]
[383832976,1757137841280,-500.0,0.00031986,5]
[383832979,1757137841296,-501.02807621,0.00031986,5]
[383832981,1757137841311,-500.0,0.00031986,5]
[383832984,1757137841327,-500.0,0.0003203,7]
[383832986,1757137841343,-500.0,0.00032081,5]
[383832989,1757137841359,-458.0,0.00032081,5]
[383832991,1757137841376,-150.0,0.00032108,2]
[383832994,1757137841390,-150.0,0.00032108,120]
[383832997,1757137841405,-150.0,0.00032139,2]
[383832999,1757137841420,-500.0,0.00032139,2]
[383833002,1757137841435,-500.0,0.00032139,2]
[383833004,1757137841451,-500.0,0.00032139,2]
[383833007,1757137841465,-500.0,0.00032139,2]
[383833010,1757137841481,-500.0,0.00032139,2]
[383833012,1757137841496,-553.6227908,0.00032139,2]
[383833015,1757137841511,-504.5099004,0.00032139,2]
[383833017,1757137841526,-500.0,0.00032139,2]
[383833020,1757137841542,-201.51,0.00032222,5]
[383833022,1757137841557,-623.98518982,0.00032355,5]
[383833025,1757137841572,-458.0,0.00032355,5]
[383833027,1757137841587,-296.31102221,0.00032413,2]
[383833030,1757137841602,-500.0,0.00032413,2]
[383833033,1757137841617,-405.13679154,0.00032413,2]
[383833035,1757137841632,-502.88567677,0.00032413,2]
[383833038,1757137841647,-309.54427842,0.00032413,2]
[383833054,1757137841795,-500.0,0.00032413,2]
[383833056,1757137841806,-452.65700953,0.00032413,2]
[383833058,1757137841816,-1507.80980385,0.00032436,5]
[383833060,1757137841826,-8795.04064424,0.0003244,3]
[383833062,1757137841837,-12105.14442791,0.0003245,2]
[383833064,1757137841847,-501.03052257,0.00032534,5]
[383833066,1757137841857,-1000.0,0.00032534,5]
[383833068,1757137841868,-501.63492296,0.00032534,5]
[383833070,1757137841878,-458.0,0.00032629,5]
[383833072,1757137841889,-5726.74155,0.0003263,2]
[383833074,1757137841898,-913.92,0.00032666,2]
[383833076,1757137841907,-500.0,0.00032687,2]
[383833078,1757137841917,-500.0,0.00032687,2]
[383833080,1757137841927,-789.29999564,0.00032713,2]
[383833082,1757137841937,-1320.12,0.00032731,2]
[383833084,1757137841946,-500.0,0.00032877,7]
[383833086,1757137841956,-500.0,0.00032877,7]
[383833088,1757137841966,-430.1254172,0.00032877,7]
[383833090,1757137841975,-168.13,0.00032885,2]
[383833092,1757137841985,-458.0,0.00032903,5]
[383833094,1757137841996,-204.68946862,0.00032961,2]
[383833096,1757137842005,-457.10537167,0.00032961,2]
[383833099,1757137842015,-1608.27,0.00033045,2]
[383833101,1757137842029,-1500.0,0.00033082,5]
[383833103,1757137842039,-458.0,0.00033177,5]
[383833105,1757137842049,-300.0,0.00033211,2]
[383833107,1757137842060,-8795.04064424,0.00033289,3]
[383833109,1757137842070,-12105.14442791,0.00033299,2]
[383833111,1757137842081,-204.94342687,0.00033313,2]
[383833112,1757137842091,-700.0,0.00033414,7]
[383833114,1757137842103,-458.0,0.0003345,5]
[383833117,1757137842114,-913.92,0.00033574,2]
[383833119,1757137842126,-789.78301001,0.00033604,30]
[383833121,1757137842136,-500.0,0.00033618,7]
[383833123,1757137842146,-2000.0,0.0003363,5]
[383833125,1757137842157,-5726.74156,0.0003363,2]
[383833127,1757137842167,-789.29999564,0.0003366,2]
[383833129,1757137842178,-199.0,0.00033698,7]
[383833131,1757137842188,-500.0,0.00033705,7]
[383833133,1757137842198,-500.0,0.00033714,7]
[383833135,1757137842208,-458.0,0.00033724,5]
[383833137,1757137842219,-458.0,0.00033998,5]
[383833139,1757137842229,-200.0,0.00034,30]
[383833141,1757137842239,-221.4,0.00034134,2]
[383833143,1757137842249,-8795.04064424,0.00034139,3]
[383833145,1757137842261,-12105.14442791,0.00034149,2]
[383833147,1757137842272,-287.36985285,0.00034173,2]
[383833149,1757137842282,-510.80586244,0.00034174,5]
[383833151,1757137842292,-2500.0,0.00034177,5]